fUSD/lending_fUSD_20240317
["ID","MTS","AMOUNT","RATE_DAILY","PERIOD"]
[319362864,1710703171453,-675.6,0.0001256,2]
[319362865,1710703171486,-324.4,0.00012583,2]
[319362866,1710703171518,-250.0,0.00012643,2]
[319362867,1710703171553,-162.54,0.00012644,2]
[319362868,1710703171585,-166.39,0.00012684,2]
[319362869,1710703171618,-765.14,0.000127,2]
[319362870,1710703171654,-178.27,0.0001289,2]
[319362871,1710703171689,-197.7,0.00013101,2]
[319362872,1710703171722,-1381.74,0.00013101,2]
[319362873,1710703171754,-150.99,0.00013101,2]
[319362874,1710703171789,-560.18,0.00013135,2]
[319362875,1710703171822,-197.7,0.00013149,2]
[319362876,1710703171854,-197.7,0.00013197,2]
[319362877,1710703171888,-197.7,0.00013246,2]
[319362878,1710703171920,-197.7,0.00013294,2]
[319362879,1710703171953,-197.7,0.00013342,2]
[319362880,1710703171986,-197.7,0.0001339,2]
[319362881,1710703172020,-178.27,0.00013438,2]
[319362882,1710703172238,-197.7,0.00013439,2]
[319362883,1710703172272,-197.7,0.00013487,2]
[319362884,1710703172306,-197.7,0.00013535,2]
[319362885,1710703172339,-197.7,0.00013583,2]
[319362886,1710703172372,-18173.0,0.00013612,2]
[319362887,1710703172405,-197.7,0.00013632,2]
[319362888,1710703172439,-197.7,0.0001368,2]
[319362889,1710703172473,-250.0,0.00013699,2]
[319362890,1710703172506,-284.79,0.00013699,2]
[319362891,1710703172539,-250.0,0.00013699,2]
[319362892,1710703172573,-150.0,0.00013699,2]
[319362893,1710703172606,-260.49,0.00013699,2]
[319362894,1710703172639,-210.0,0.00013702,2]
[319362895,1710703172673,-197.7,0.00013728,2]
[319362896,1710703172707,-197.7,0.00013777,2]
[319362897,1710703172746,-150.0,0.00013779,2]
[319362898,1710703172783,-176.85130926,0.00013789,2]
[319362899,1710703172820,-297.86106422,0.00013789,2]
[319362900,1710703172855,-801.0516,0.000138,2]
[319362901,1710703172889,-235.6566355,0.00013808,2]
[319362902,1710703172923,-167.0,0.00013809,2]
[319362903,1710703172961,-150.0,0.00013809,2]
[319362904,1710703172996,-150.0,0.00013811,2]
[319362905,1710703173030,-150.0,0.00013816,2]
[319362906,1710703173065,-197.7,0.00013825,2]
[319362907,1710703173118,-260.49,0.00013836,2]
[319362908,1710703173156,-150.0,0.00013847,2]
[319362909,1710703173194,-150.0,0.00013857,2]
[319362910,1710703173227,-159.89427708,0.00013859,2]
[319362911,1710703173260,-197.7,0.00013873,2]
[319362912,1710703173292,-818.76,0.00013878,3]
[319362913,1710703173324,-155.0,0.00013887,2]
[319362914,1710703173357,-200.0,0.00013888,2]
[319362915,1710703173390,-200.0,0.00013888,2]
[319362916,1710703173423,-72965.0369246,0.00013888,2]
[319362917,1710703173443,-904.70285767,0.00013888,2]
[319362918,1710703173458,-1238.09469289,0.00013888,2]
[319362919,1710703173468,-5935.89131526,0.00013888,2]
[319362920,1710703173480,-2054.67362009,0.00013888,2]
[319362921,1710703173492,-150.0,0.00013888,2]
[319362922,1710703173510,-159.81099323,0.00013888,2]
[319362923,1710703173521,-653.89725125,0.00013888,2]
[319362924,1710703173566,-675.6,0.00013888,2]
[319362925,1710703173594,-324.4,0.00013888,2]
[319362926,1710703173611,-250.0,0.00013888,2]
[319362927,1710703173629,-162.54,0.00013888,2]
[319362928,1710703173641,-166.39,0.00013888,2]
[319362929,1710703173653,-765.14,0.00013888,2]
[319362930,1710703173665,-178.27,0.00013888,2]
[319362931,1710703173683,-197.7,0.00013888,2]
[319362932,1710703173695,-1381.74,0.00013888,2]
[319362933,1710703173706,-150.99,0.00013888,2]
[319362934,1710703173723,-560.18,0.00013888,2]
[319362935,1710703173747,-197.7,0.00013888,2]
[319362936,1710703173760,-197.7,0.00013888,2]
[319362937,1710703173771,-197.7,0.00013888,2]
[319362938,1710703173783,-197.7,0.00013888,2]
[319362939,1710703173801,-197.7,0.00013888,2]
[319362940,1710703173813,-197.7,0.00013888,2]
[319362941,1710703173825,-178.27,0.00013888,2]
[319362942,1710703173844,-197.7,0.00013888,2]
[319362943,1710703173879,-197.7,0.00013888,2]
[319362944,1710703173893,-197.7,0.00013888,2]
[319362945,1710703173904,-197.7,0.00013888,2]
[319362946,1710703173916,-9401.64592125,0.00013888,2]
[319362947,1710703173927,-197.7,0.00013888,2]
[319362948,1710703173938,-197.7,0.00013888,2]
[319362949,1710703173950,-250.0,0.00013888,2]
[319362950,1710703173961,-284.79,0.00013888,2]
[319362951,1710703173979,-250.0,0.00013888,2]
[319362952,1710703173990,-150.0,0.00013888,2]
[319362953,1710703174001,-260.49,0.00013888,2]
[319362954,1710703174017,-210.0,0.00013888,2]
[319362955,1710703174028,-197.7,0.00013888,2]
[319362956,1710703174039,-197.7,0.00013888,2]
[319362957,1710703174050,-150.0,0.00013888,2]
[319362958,1710703174067,-176.85130926,0.00013888,2]
[319362959,1710703174090,-297.86106422,0.00013888,2]
[319362960,1710703174273,-801.0516,0.00013888,2]
[319362961,1710703174284,-235.6566355,0.00013888,2]
[319362962,1710703174296,-167.0,0.00013888,2]
[319362963,1710703174307,-150.0,0.00013888,2]
[319362964,1710703174319,-150.0,0.00013888,2]
[319362965,1710703174341,-150.0,0.00013888,2]
[319362966,1710703174357,-197.7,0.00013888,2]
[319362967,1710703174372,-260.49,0.00013888,2]
[319362968,1710703174389,-150.0,0.00013888,2]
[319362969,1710703174400,-150.0,0.00013888,2]
[319362970,1710703174412,-159.89427708,0.00013888,2]
[319362971,1710703174427,-197.7,0.00013888,2]
[319362972,1710703174439,-818.76,0.00013888,2]
[319362973,1710703174457,-155.0,0.00013888,2]
[319362974,1710703174468,-200.0,0.00013888,2]
[319362975,1710703174478,-200.0,0.00013888,2]
[319362976,1710703174489,-9401.64592125,0.00013888,2]
[319362977,1710703231393,522.34,0.00011082,2]
[319362978,1710703495302,948.30238822,0.00010528,2]
[319362979,1710703519213,948.30238822,0.00010528,2]
[319362980,1710703537225,948.30238822,0.00010528,2]
[319362981,1710703555226,948.30238822,0.00010528,2]
[319362982,1710703579225,948.30238822,0.00010002,2]
[319362983,1710703597228,948.30238822,0.00010002,2]
[319362984,1710703619235,948.30238822,9.502e-05,2]
[319362985,1710703637230,948.30238822,9.502e-05,2]
[319362986,1710703661237,948.30238822,9.502e-05,2]
[319362987,1710703679223,948.30238822,9.027e-05,2]
[319362988,1710703694816,513.49,0.00010983,2]
[319362989,1710703699229,948.30238822,9.027e-05,2]
[319362990,1710703717268,948.30238822,9.027e-05,2]
[319362992,1710703735249,948.30238822,8.576e-05,2]
[319362993,1710703753238,948.30238822,8.576e-05,2]
[319362994,1710703775249,948.30238822,8.576e-05,2]
[319363001,1710703791262,948.30238822,8.147e-05,2]
[319363005,1710703813246,948.30238822,8.147e-05,2]
[319363006,1710703829266,1080.44074812,8.147e-05,2]
[319363014,1710703832125,-643.07,0.00012878,2]
[319363015,1710703832144,-356.93,0.00012878,2]
[319363016,1710703832153,-603.13523844,0.00012882,2]
[319363017,1710703832162,-775.86408371,0.00012882,2]
[319363018,1710703832171,-780.82276186,0.00012883,2]
[319363019,1710703832186,-457.27193103,0.00012883,2]
[319363020,1710703832204,-178.27,0.00012886,2]
[319363021,1710703832219,-250.0,0.000129,2]
[319363022,1710703832234,-181.13,0.0001292,2]
[319363023,1710703832247,-509.76,0.00012931,2]
[319363024,1710703832259,-171.35,0.00012963,2]
[319363025,1710703832273,-513.49,0.00013247,2]
[319363026,1710703832289,-4772.42419931,0.00013343,2]
[319363027,1710703832303,-178.27,0.00013434,2]
[319363028,1710703832316,-150.0,0.00013698,2]
[319363029,1710703832331,-499.99,0.00013699,2]
[319363030,1710703832344,-150.99,0.00013699,2]
[319363031,1710703832354,-564.67,0.00013699,2]
[319363032,1710703832366,-284.79,0.00013699,2]
[319363033,1710703832379,-200.80984685,0.00013699,2]
[319363034,1710703832394,-49.19015315,0.00013699,2]
[319363035,1710703832406,-260.49,0.00013699,2]
[319363036,1710703832418,-150.0,0.00013742,2]
[319363037,1710703832430,-163.82095182,0.00013789,2]
[319363038,1710703832443,-968.0,0.000138,2]
[319363039,1710703832455,-1000.0,0.000138,2]
[319363040,1710703832465,-922.44,0.000138,2]
[319363041,1710703832479,-408.41,0.000138,2]
[319363042,1710703832492,-922.44,0.000138,2]
[319363044,1710703832506,-407.93,0.000138,2]
[319363046,1710703832518,-313.97,0.000138,2]
[319363048,1710703832529,-260.49,0.00013836,2]
[319363050,1710703832541,-159.89427708,0.00013859,2]
[319363052,1710703832553,-9926.85468824,0.00013878,2]
[319363055,1710703832565,-174.17989662,0.00013878,2]
[319363057,1710703832577,-682.3,0.00013878,3]
[319363059,1710703832590,-341.15,0.00013878,3]
[319363060,1710703832603,-170.58,0.00013878,3]
[319363061,1710703832616,-511.75,0.00013878,3]
[319363062,1710703832630,-3325.03843687,0.00013886,2]
[319363063,1710703832641,-2053.48395064,0.00013886,2]
[319363064,1710703832651,-4298.58040942,0.00013886,2]
[319363065,1710703832661,-440.63550621,0.00013886,2]
[319363066,1710703832672,-4171.39722441,0.00013886,2]
[319363067,1710703832684,-1883.28731315,0.00013887,2]
[319363068,1710703832696,-131239.87585341,0.00013888,2]
[319363069,1710703832715,-397.7418011,0.00013888,2]
[319363070,1710703832735,-1029.07753147,0.00013888,2]
[319363071,1710703832776,-14586.79280865,0.00013888,2]
[319363072,1710703832790,-690.8245438,0.00013888,2]
[319363073,1710703832810,-380.337503,0.00013888,2]
[319363074,1710703832831,-2892.96845365,0.00013888,2]
[319363075,1710703832888,-6023.95082908,0.00013888,2]
[319363076,1710703832901,-4001.8,0.00013888,2]
[319363077,1710703832915,-276.76458407,0.00013888,2]
[319363107,1710703838066,-58235.7732,0.00013888,2]
[319363115,1710703838124,-4492.89494607,0.00013888,2]
[319363118,1710703838145,-19659.63250079,0.00013888,2]
[319363127,1710703838238,-1345.26643223,0.00013888,2]
[319363129,1710703838250,-564.67,0.00013888,2]
[319363134,1710703838298,-660368.57303712,0.00013888,2]
[319363135,1710703838307,-58102.28656762,0.00013889,2]
[319363136,1710703838316,-58102.28656757,0.00013889,2]
[319363137,1710703838326,-58102.28656757,0.00013889,2]
[319363138,1710703838335,-58102.28656757,0.00013889,2]
[319363139,1710703838344,-58102.28656757,0.00013889,2]
[319363140,1710703838353,-58102.28656757,0.00013889,2]
[319363142,1710703838364,-58102.28656757,0.00013889,2]
[319363144,1710703838373,-58102.28656757,0.00013889,2]
[319363146,1710703838382,-58102.28656757,0.00013889,2]
[319363148,1710703838391,-45932.48652312,0.00013889,2]
[319363150,1710703838401,-45932.48652303,0.00013889,2]
[319363152,1710703838410,-45932.48652303,0.00013889,2]
[319363154,1710703838420,-45932.48652303,0.00013889,2]
[319363156,1710703838429,-45932.48652303,0.00013889,2]
[319363158,1710703838439,-45932.48652303,0.00013889,2]
[319363159,1710703838448,-45932.48652303,0.00013889,2]
[319363160,1710703838458,-45932.48652303,0.00013889,2]
[319363161,1710703838467,-45932.48652303,0.00013889,2]
[319363162,1710703838476,-150.0,0.0001389,2]
[319363163,1710703838485,-1119.24,0.000139,2]
[319363165,1710703838495,-922.44,0.000139,2]
[319363166,1710703838504,-922.44,0.000139,2]
[319363167,1710703838513,-408.41,0.000139,2]
[319363168,1710703838522,-408.41,0.000139,2]
[319363169,1710703838531,-922.44,0.000139,2]
[319363170,1710703838540,-408.41,0.000139,2]
[319363171,1710703838550,-184.33,0.000139,2]
[319363172,1710703838559,-58102.28656757,0.000139,2]
[319363173,1710703838568,-45932.48652303,0.000139,2]
[319363174,1710703838577,-679.42518998,0.000139,2]
[319363175,1710703838586,-5502.825084,0.000139,2]
[319363177,1710703838596,-197.7,0.00013921,2]
[319363179,1710703838605,-150.0,0.00013922,2]
[319363181,1710703838614,-150.0,0.00013949,2]
[319363183,1710703838622,-150.0,0.00013957,2]
[319363185,1710703838632,-197.7,0.0001397,2]
[319363187,1710703838641,-628.452144,0.00013973,2]
[319363188,1710703838650,-250.16185119,0.00013973,2]
[319363190,1710703838659,-260.49,0.00013973,2]
[319363192,1710703838668,-150.0,0.0001398,2]
[319363194,1710703838677,-178.27,0.00013982,2]
[319363196,1710703838686,-49728.16161238,0.0001399,2]
[319363198,1710703838695,-200.58313368,0.0001399,2]
[319363199,1710703838706,-381531.20993984,0.0001399,2]
[319363201,1710703838715,-3702.1678913,0.0001399,2]
[319363202,1710703838725,-10412.2166524,0.0001399,2]
[319363204,1710703838734,-4843.7729596,0.0001399,2]
[319363206,1710703838744,-7955.0840795,0.0001399,2]
[319363208,1710703838753,-3379.9828824,0.0001399,2]
[319363209,1710703838763,-77847.1735757,0.0001399,2]
[319363211,1710703838772,-190.56209382,0.00013998,2]
[319363213,1710703838782,-500.0,0.00013999,2]
[319363214,1710703838791,-150.01,0.00013999,2]
[319363215,1710703838800,-5002.53230386,0.00013999,2]
[319363216,1710703838810,-10100644.50957869,0.00014,2]
[319363217,1710703838822,-1065915.12966472,0.00014,2]
[319363218,1710703838833,-2024.7921918,0.00014,2]
[319363219,1710703838857,-1227.3329625,0.00014,2]
[319363241,1710703840294,-159.89427708,0.00013859,2]
[319363242,1710703840303,-1704.61643108,0.00014,2]
[319363243,1710703840315,-11569.52959437,0.00014,2]
[319363244,1710703840407,-3321.50570384,0.00014,2]
[319363245,1710703840417,-392.28489986,0.00014,2]
[319363246,1710703840429,-1022.83023148,0.00014,2]
[319363280,1710703843093,-18796.436938,0.00014,2]
[319363283,1710703843104,-1705.54172003,0.00014,2]
[319363286,1710703843116,-464.8819256,0.00014,2]
[319363289,1710703843127,-2588.04445332,0.00014,2]
[319363295,1710703843161,-375930.81773482,0.00014,2]
[319363297,1710703843174,-217044.6,0.00014,2]
[319363307,1710703843269,-260.4307312,0.00013999,2]
[319363309,1710703843281,-3624.89553727,0.00014,2]
[319363333,1710703843518,-1071.786482,0.00014,2]
[319363334,1710703843529,-550.47006807,0.00014,2]
[319363336,1710703843541,-685.5989855,0.00014,2]
[319363338,1710703843552,-11986.92987171,0.00014,2]
[319363371,1710703846156,-260.47830006,0.00013554,2]
[319363372,1710703846200,-79.02169994,0.00013554,2]
[319363373,1710703846210,-712.18672648,0.00013999,2]
[319363374,1710703846223,-328.63145386,0.00013999,2]
[319363375,1710703846260,-547.29616453,0.00013999,2]
[319363376,1710703846271,-509.05222549,0.00013999,2]
[319363377,1710703846283,-2905.3657335,0.00013999,2]
[319363378,1710703846298,-502.6126987,0.00013999,2]
[319363379,1710703846311,-66887.89458601,0.00014,2]
[319363380,1710703846323,-264.30000001,0.00014,2]
[319363381,1710703847112,-40529.50025185,0.00014,2]
[319363382,1710703847130,-1074.0,0.00014,2]
[319363383,1710703847178,-16468.79961458,0.00014,2]
[319363384,1710703847192,-56312.90951705,0.00014,2]
[319363385,1710703847205,-11919.47501975,0.00014,2]
[319363386,1710703847221,-546.006,0.00014,2]
[319363387,1710703847232,-74422.60190598,0.00014,2]
[319363388,1710703847261,-657.90609423,0.00014,2]
[319363389,1710703847308,-10423.76078339,0.00014,2]
[319363390,1710703847323,-2909.59655998,0.00014,2]
[319363391,1710703847336,-608.09613919,0.00014,2]
[319363392,1710703847349,-2343.70985626,0.00014,2]
[319363393,1710703847362,-948.66014233,0.00014,2]
[319363394,1710704223406,512.61,0.0001078,2]
[319363395,1710704318257,1762.73028619,0.00010491,2]
[319363396,1710704340259,237.26971381,0.00010491,2]
[319363397,1710704512481,1762.2498074,0.00010491,2]
[319363398,1710704644349,1000.0,0.00010491,2]
[319363399,1710704654250,590.83,0.00010565,2]
[319363400,1710704661005,405.85447584,0.00010176,2]
[319363401,1710704730989,218.65331006,0.0001,2]
[319363402,1710704797586,-3623.32246137,0.00015,10]
[319363403,1710704839211,-1500.0,0.00013699,4]
[319363404,1710704883986,-172.84,0.00017808,10]
[319363405,1710704884398,-1000.0,0.0001863,20]
[319363406,1710704884422,-1000.0,0.0001863,20]
[319363407,1710704884459,-1000.0,0.0001863,20]
[319363408,1710704884484,-1000.0,0.0001863,20]
[319363409,1710704884508,-1000.0,0.0001863,20]
[319363410,1710704884531,-1000.0,0.0001863,20]
[319363411,1710704884555,-190.55026484,0.0001863,20]
[319363412,1710704884710,-172.84,0.00019553,10]
[319363413,1710704884735,-292.0,0.00019565,15]
[319363414,1710704884759,-152.16,0.00019565,15]
[319363415,1710704884783,-154.42,0.00019565,15]
[319363416,1710704884806,-292.0,0.00019565,15]
[319363417,1710704884829,-292.0,0.00019575,15]
[319363418,1710704884853,-150.5,0.00019575,15]
[319363419,1710704884877,-150.5,0.00019575,15]
[319363420,1710704884901,-292.0,0.00019575,15]
[319363421,1710704884926,-292.0,0.00019575,15]
[319363422,1710704884950,-293.16,0.00019575,15]
[319363423,1710704884973,-152.35,0.00019585,15]
[319363424,1710704884996,-152.08,0.00019585,15]
[319363425,1710704885020,-155.35,0.00019585,15]
[319363426,1710704885050,-151.22,0.00019585,15]
[319363427,1710704885076,-292.0,0.00019585,15]
[319363428,1710704885100,-150.76,0.00019585,15]
[319363429,1710704885125,-150.5,0.00019585,15]
[319363430,1710704885152,-150.5,0.00019585,15]
[319363431,1710704885176,-153.31,0.00019585,15]
[319363432,1710704885200,-292.0,0.00019585,15]
[319363433,1710704885224,-292.0,0.00019585,15]
[319363434,1710704885248,-292.0,0.00019585,15]
[319363435,1710704885324,-2902.86,0.00021918,10]
[319363436,1710704885352,-1200.0,0.00022,23]
[319363437,1710704885378,-2000.0,0.00022,30]
[319363438,1710704885403,-702.0,0.00022,10]
[319363439,1710704885436,-2900.0,0.000225,15]
[319363440,1710704885463,-702.0,0.000225,10]
[319363441,1710704885492,-1200.0,0.00023,24]
[319363442,1710704885516,-702.0,0.00023,11]
[319363443,1710704885543,-500.0,0.000232,30]
[319363444,1710704885568,-639.60194589,0.000232,30]
[319363445,1710704885601,-177.06,0.00023288,14]
[319363446,1710704885628,-702.0,0.000235,11]
[319363447,1710704885653,-201.67065339,0.000237,33]
[319363448,1710704885679,-724.26521493,0.000238,15]
[319363449,1710704885709,-1200.0,0.00024,25]
[319363450,1710704885734,-150.0,0.00024,10]
[319363451,1710704885760,-702.0,0.00024,12]
[319363452,1710704885785,-500.0,0.00024,30]
[319363453,1710704885810,-502.90240316,0.00024,30]
[319363454,1710704885841,-500.0,0.000244,120]
[319363455,1710704885872,-702.0,0.000245,12]
[319363456,1710704885899,-2902.86,0.00024658,10]
[319363457,1710704885927,-1954.51463588,0.00025,10]
[319363458,1710704885953,-4526.40242054,0.00025,30]
[319363459,1710704983616,-502.6126987,0.00011892,2]
[319363460,1710704983646,-321.08397805,0.00011892,2]
[319363461,1710704983675,-178.27,0.00011893,2]
[319363462,1710704990922,-157.76843315,0.00012254,2]
[319363463,1710704990948,-1062.77049025,0.00012255,2]
[319363464,1710704990976,-679.18882137,0.00012255,2]
[319363465,1710704991003,-446.68901374,0.00012255,2]
[319363466,1710704991027,-155.0,0.00012255,2]
[319363467,1710704991052,-166.1019814,0.00012255,2]
[319363468,1710704991076,-155.0,0.00012256,2]
[319363469,1710704991102,-1238.09469289,0.00012257,2]
[319363470,1710704991126,-177.3690434,0.00012259,2]
[319363471,1710704991849,258.97241146,0.00012254,2]
[319363472,1710705000275,-5935.89131526,0.00012356,2]
[319363473,1710705000301,-800.0,0.00012359,2]
[319363474,1710705000324,-501.9,0.00012359,2]
[319363475,1710705000347,-492.59,0.00012359,2]
[319363476,1710705000370,-717.47,0.00012359,2]
[319363477,1710705000393,-1323.03,0.00012361,2]
[319363478,1710705000416,-905.37,0.00012361,2]
[319363479,1710705000439,-1273.15,0.00012386,2]
[319363480,1710705000463,-4524.45,0.00012386,2]
[319363483,1710705010390,-150.0,0.00012409,2]
[319363484,1710705010413,-1558.39,0.00012417,2]
[319363485,1710705010436,-499.99,0.00012417,2]
[319363486,1710705010459,-150.0,0.00012438,2]
[319363487,1710705010482,-178.27,0.00012441,2]
[319363488,1710705010504,-548.58,0.00012462,2]
[319363489,1710705010527,-200.0,0.0001247,2]
[319363490,1710705010550,-13034.82,0.00012474,2]
[319363491,1710705010574,-158.44,0.00012486,2]
[319363531,1710705032360,-150.0,0.00012518,2]
[319363533,1710705032372,-200.0,0.00012527,2]
[319363535,1710705032382,-250.0,0.00012562,2]
[319363537,1710705032393,-166.39,0.00012563,2]
[319363539,1710705032403,-162.55,0.00012644,2]
[319363541,1710705032413,-158.44,0.00012811,2]
[319363543,1710705032423,-590.83,0.00012829,2]
[319363545,1710705032434,-6.98117912,0.00012893,2]
[319363547,1710705032447,-461.6,0.00012893,2]
[319363550,1710705032461,-25929.76882088,0.00012893,2]
[319363552,1710705032470,-29999.99,0.00012893,2]
[319363554,1710705032480,-922.18,0.000129,2]
[319363556,1710705032492,-159.31,0.00012925,2]
[319363558,1710705032501,-178.27,0.00012989,2]
[319363560,1710705032510,-158.44,0.00013137,2]
[319363562,1710705032521,-922.44,0.00013143,2]
[319363564,1710705032530,-408.41,0.00013143,2]
[319363566,1710705032540,-408.41,0.00013143,2]
[319363568,1710705032550,-408.41,0.00013143,2]
[319363570,1710705032560,-408.41,0.00013143,2]
[319363572,1710705032568,-408.41,0.00013143,2]
[319363574,1710705032578,-159.31,0.00013152,2]
[319363576,1710705032587,-449.35019207,0.00013158,2]
[319363578,1710705032597,-408.41,0.000132,2]
[319363580,1710705032606,-816.7,0.00013241,2]
[319363582,1710705032616,-408.41,0.00013241,2]
[319363584,1710705032626,-516.7,0.0001326,2]
[319363586,1710705032635,-303.61,0.0001326,2]
[319363588,1710705032645,-150.0,0.0001326,2]
[319363590,1710705032656,-300.0,0.0001326,2]
[319363592,1710705032665,-414.91,0.0001326,2]
[319363593,1710705032674,-488.96,0.0001326,2]
[319363595,1710705032683,-150.0,0.0001326,2]
[319363597,1710705032693,-150.0,0.0001326,2]
[319363600,1710705032703,-516.7,0.0001326,2]
[319363604,1710705032713,-302.51,0.0001326,2]
[319363606,1710705032723,-414.91,0.0001326,2]
[319363608,1710705032733,-150.0,0.0001326,2]
[319363611,1710705032743,-150.0,0.0001326,2]
[319363614,1710705032753,-150.0,0.0001326,2]
[319363616,1710705032762,-414.91,0.0001326,2]
[319363620,1710705032771,-150.0,0.0001326,2]
[319363623,1710705032781,-346.78,0.0001326,2]
[319363625,1710705032790,-516.7,0.0001326,2]
[319363628,1710705032799,-150.0,0.0001326,2]
[319363632,1710705032808,-150.0,0.0001326,2]
[319363635,1710705032817,-414.91,0.0001326,2]
[319363638,1710705032826,-150.0,0.0001326,2]
[319363641,1710705032835,-516.7,0.0001326,2]
[319363643,1710705032844,-150.0,0.0001326,2]
[319363647,1710705032855,-150.0,0.0001326,2]
[319363651,1710705032865,-346.78,0.0001326,2]
[319363656,1710705032874,-346.78,0.0001326,2]
[319363660,1710705032883,-150.0,0.0001326,2]
[319363664,1710705032893,-150.0,0.0001326,2]
[319363668,1710705032902,-694.31,0.0001326,2]
[319363672,1710705032912,-150.0,0.0001326,2]
[319363675,1710705032921,-359.55,0.0001326,2]
[319363679,1710705032930,-151.49,0.0001326,2]
[319363683,1710705032939,-300.0,0.0001326,2]
[319363685,1710705032948,-828.06,0.0001326,2]
[319363687,1710705032957,-408.41,0.000133,2]
[319363689,1710705032967,-408.41,0.00013341,2]
[319363691,1710705032977,-516.61,0.00013376,2]
[319363693,1710705032988,-150.0,0.00013376,2]
[319363695,1710705032997,-150.0,0.00013376,2]
[319363696,1710705033005,-414.85,0.00013376,2]
[319363697,1710705033014,-159.31,0.00013378,2]
[319363698,1710705033024,-346.78,0.00013378,2]
[319363699,1710705033033,-346.78,0.00013378,2]
[319363700,1710705033042,-346.78,0.00013378,2]
[319363701,1710705033051,-175.58,0.00013378,2]
[319363702,1710705033061,-150.0,0.000134,2]
[319363703,1710705033070,-150.7,0.000134,2]
[319363704,1710705033079,-516.7,0.000134,2]
[319363705,1710705033089,-150.0,0.000134,2]
[319363706,1710705033098,-414.91,0.000134,2]
[319363707,1710705033108,-300.32,0.000134,2]
[319363708,1710705033119,-302.2,0.000134,2]
[319363709,1710705033129,-150.0,0.000134,2]
[319363710,1710705033139,-426.3,0.0001343,2]
[319363711,1710705033152,-346.78,0.00013447,2]
[319363712,1710705033162,-150.0,0.00013447,2]
[319363713,1710705033171,-364.04,0.000135,2]
[319363714,1710705033180,-922.44,0.000135,2]
[319363715,1710705033189,-346.78,0.000135,2]
[319363716,1710705033198,-150.0,0.000135,2]
[319363717,1710705033208,-346.78,0.000135,2]
[319363718,1710705033218,-178.27,0.00013537,2]
[319363719,1710705033228,-159.31,0.00013604,2]
[319363720,1710705033238,-250.0,0.00013699,2]
[319363721,1710705033247,-223.42,0.00013699,2]
[319363722,1710705033256,-260.49,0.00013699,2]
[319363723,1710705033265,-159.31,0.0001383,2]
[319363724,1710705033284,-260.49,0.00013836,2]
[319363725,1710705033296,-159.89427708,0.00013859,2]
[319363726,1710705033306,-199.0,0.00013878,3]
[319363727,1710705033317,-398.01,0.0001388,3]
[319363728,1710705033326,-193.40759613,0.00013887,2]
[319363729,1710705033742,-6.59240387,0.00013887,2]
[319363730,1710705033751,-800.0,0.00013887,2]
[319363731,1710705033760,-200.0,0.00013887,2]
[319363732,1710705033770,-500.0,0.00013887,2]
[319363733,1710705033778,-200.0,0.00013887,2]
[319363734,1710705033789,-200.0,0.00013887,2]
[319363735,1710705033800,-200.0,0.00013887,2]
[319363736,1710705033810,-200.0,0.00013888,2]
[319363737,1710705033821,-800.0,0.00013888,2]
[319363738,1710705033831,-382.99669613,0.00013888,2]
[319363739,1710705033847,-117.00330387,0.00013888,2]
[319363740,1710705033857,-200.0,0.00013888,2]